Cogmind - Beta 16 @@@ ROGUE MODE // 2025.11.25 @ 17:20:07 Player: Mozco Result: Destroyed by D-53 Grenadier with Mini Grenade Launcher Performance ------------- Evolutions (0) 0 Regions Visited (2) 400 Robots Destroyed (37) 185 Value Destroyed (733) 733 Prototype IDs (3) 60 Alien Tech Used (0) 0 Bonus (0) 0 TOTAL SCORE: 1378 Bonus ------- None Cogmind --------- Core Integrity 0/250 Matter 294/300 Energy 59/100 System Corruption 0% Temperature Warm (117) Movement Rolling (105) Ox1 Location -10/Mines Parts ------- > --- POWER (1) -------- (None) > --- PROPULSION (2) --- Wheel Compact Wheel > --- UTILITY (2) ------ High-capacity Storage Unit > --- WEAPON (2) ------- Particle Gun > --- INVENTORY (20) --- Ion Engine Light Nuclear Core Wheel Wheel Wheel Wheel Wheel Compact Wheel Improved Heat Sink High-capacity Matter Pod (46) High-capacity Matter Pod (0) Improved Terrain Scanner Light Armor Plating Light Armor Plating Light Armor Plating Hacking Suite Light Assault Rifle Datajack Peak State ------------ > --- POWER ------------ Ion Engine > --- PROPULSION ------- Wheel Compact Wheel > --- UTILITY ---------- High-capacity Storage Unit Light Armor Plating > --- WEAPON ----------- Beamcaster Assault Rifle > --- INVENTORY -------- Ion Engine Light Nuclear Core Wheel Wheel Wheel Wheel Wheel Compact Wheel Improved Heat Sink High-capacity Matter Pod High-capacity Matter Pod Improved Terrain Scanner Light Armor Plating Light Armor Plating Light Armor Plating Light Armor Plating Hacking Suite Particle Gun Light Assault Rifle Datajack [Rating: 13] Favorites ----------- Power Ion Engine Engine Ion Engine Propulsion Compact Wheel Wheel Compact Wheel Utility Light Armor Plating Storage High-capacity Storage Unit Processor Signal Interpreter Hackware Hacking Suite Protection Light Armor Plating Weapon Assault Rifle Energy Gun Beamcaster Ballistic Gun Assault Rifle Launcher Grenade Launcher Build | -11 -10 -10 ------- Run | Yrd Mat Min Slots Evolved . | . . . Power . | . . . Propulsion . | . . . Utility . | . . . Weapon . | . . . Parts Attached 27 | 7 15 5 Power 2 | 2 . . Engine 2 | 2 . . Core . | . . . Reactor . | . . . Propulsion 7 | 2 4 1 Treads . | . . . Leg . | . . . Wheel 7 | 2 4 1 Hover . | . . . Flight . | . . . Utility 10 | 1 7 2 Device . | . . . Storage 3 | 1 2 . Processor 1 | . 1 . Hackware 1 | . 1 . Protection 5 | . 3 2 Artifact . | . . . Weapon 8 | 2 4 2 Energy Gun 2 | . . 2 Energy Cannon . | . . . Ballistic Gun 5 | 2 3 . Ballistic Cannon . | . . . Launcher 1 | . 1 . Special Weapon . | . . . Impact Weapon . | . . . Slashing Weapon . | . . . Piercing Weapon . | . . . Special Melee Weapon . | . . . Unidentified Prototypes . | . . . Parts Lost 6 | . . 6 Power 1 | . . 1 Propulsion . | . . . Utility 2 | . . 2 Weapon 3 | . . 3 Highest Loss Streak 5 | . . 5 To Critical Strikes . | . . . Average Backups 12 | 2 11 19 Power 1 | . 1 2 Propulsion 3 | . 3 5 Utility 4 | . 4 8 Weapon 1 | . 1 2 Tool/Special . | . . . Unused Backups 21 | . 6 15 Power 3 | . 1 2 Propulsion 5 | . 1 4 Utility 11 | . 4 7 Weapon 1 | . . 1 Tool/Special 1 | . . 1 Average Slot Usage (%) 99 | . 99 99 Engine 14 | . 14 14 Wheel 27 | . 27 28 Storage 14 | . 14 14 Protection 13 | . 13 14 Energy Gun 1 | . . 7 Ballistic Gun 25 | . 26 20 Peak Build Rating 13 | 6 10 13 Average Rating 8 | 4 8 11 On Entrance 5 | . 6 9 Avg Prop Armor Cover (%) . | . . . Naked Turns . | . . . Heaviest Build 55 | 14 53 55 Greatest Support 32 | 32 32 26 Greatest Overweight (x) 2 | . 2 2 Average Overweight (x) . | . . 1 Largest Inventory Capacity 20 | 8 20 20 Average Capacity 14 | 6 13 20 Most Carried 20 | 7 20 20 Average Carried 12 | 2 11 19 Final Capacity 20 | 8 20 20 Final Carried 20 | 7 20 18 Class Distribution -------------------- 90% | Mutant 9% | Scavenger-Mutant Dominant Class ---------------- Mutant | -10/Materials Scavenger-Mutant | -10/Mines Resources | -11 -10 -10 ----------- Run | Yrd Mat Min Matter Collected 1293 | 292 674 327 Remotely . | . . . Salvage Created 1024 | 119 700 205 Parts 77 | 10 57 10 Haulers Intercepted 2 | . 2 . Recyclers Shooed 1 | . 1 . Parts Field Recycled . | . . . Retrieved Matter . | . . . Parts Self-Destructed . | . . . Prevented . | . . . Parts Restored . | . . . Kills | -11 -10 -10 ------- Run | Yrd Mat Min Combat Hostiles Destroyed 21 | . 15 6 Guns 13 | . 9 4 AOE 8 | . 6 2 Classes Destroyed 9 | 2 6 1 Worker 6 | . 5 1 Tunneler 4 | 2 1 1 Hauler 2 | . 2 . Recycler 1 | 1 . . Operator 2 | . 2 . Watcher 1 | . 1 . Swarmer 6 | . 3 3 Grunt 14 | . 12 2 Demolisher 1 | . . 1 Best Kill Streak 9 | 3 9 3 Combat Bots Only 5 | . 5 3 Max Kills in Single Turn 2 | 1 2 2 Gunslinging . | . . . Exploded 2 | . 2 2 Melee . | . . . Uniques/NPCs Destroyed . | . . . Combat | -11 -10 -10 -------- Run | Yrd Mat Min Hostile Shots Fired 79 | . 52 27 Missed 20 | . 15 5 Hits 59 | . 37 22 Projectile 59 | . 37 22 AOE 12 | . . 12 Damage Taken 1139 | . 476 663 Core 257 | . 75 182 Absorbed by Shields . | . . . Regen/Repaired (Parts) 28 | . 28 . Core Remaining (%) 100 | 100 . . Volleys Fired 111 | 4 91 16 Largest 2 | 2 2 2 Hottest 140 | 40 40 140 Shots Fired 209 | 8 172 29 Gun 197 | 8 162 27 Cannon . | . . . Launcher 12 | . 10 2 Special . | . . . Kinetic 191 | 8 162 21 Thermal 6 | . . 6 Explosive 12 | . 10 2 Electromagnetic . | . . . Robot Hit Streak 12 | 3 12 5 Robot Miss Streak 4 | 1 4 4 Penetration Max . | . . . Secondary Targets 2 | . 1 1 Max Gunslinging Chain 1 | . 1 1 Shots Hit Robots 117 | 5 94 18 Core Hits 61 | 4 46 11 Critical Kills . | . . . Critical Parts Destroyed 1 | . 1 . Critical Strikes 2 | . 1 1 Burn 1 | . . 1 Destroy 1 | . 1 . Melee Attacks . | . . . Impact . | . . . Slashing . | . . . Piercing . | . . . Sneak Attacks . | . . . Combat Hostiles . | . . . Follow-up Attacks . | . . . Damage Inflicted 2140 | 81 1668 391 Guns 1539 | 81 1187 271 Cannons . | . . . Explosions 601 | . 481 120 Melee . | . . . Ramming . | . . . Kinetic 1462 | 81 1187 194 Thermal 77 | . . 77 Explosive 601 | . 481 120 Electromagnetic . | . . . Impact . | . . . Slashing . | . . . Piercing . | . . . Highest Corruption . | . . . Average Corruption . | . . . Corruption Purged . | . . . Corruption Blocked . | . . . Overload Shots . | . . . Overflow Damage 10 | . 3 7 Projectiles . | . . . Explosions 10 | . 3 7 Melee . | . . . Knockbacks . | . . . Impact . | . . . Kinetic . | . . . Secondary . | . . . Self-Inflicted Damage 17 | . 17 . Shots 1 | . 1 . Rammed . | . . . Targets Rammed . | . . . Kicked . | . . . Crushed . | . . . Highest Temperature 117 | . 22 117 Average Temperature 15 | . 4 29 Received Heat Transfer 300 | . 234 66 Siege Activations . | . . . Martial Activations . | . . . Shielding Activations . | . . . Robots Disrupted . | . . . Combat Hostiles . | . . . Robots Corrupted . | . . . Combat Hostiles . | . . . Parts Fried . | . . . Impact Corruptions . | . . . Robots Melted . | . . . Combat Hostiles . | . . . Parts Melted . | . . . Heat Transferred 222 | . . 222 Parts Sabotaged . | . . . Parts Stolen . | . . . Parts Stripped . | . . . Power Chain Reactions . | . . . Alert | -11 -10 -10 ------- Run | Yrd Mat Min Maximum Alert Level 1 | . 1 . Low Security (%) 73 | 100 65 100 Level 1 26 | . 34 . Level 2 . | . . . Level 3 . | . . . Level 4 . | . . . Level 5 . | . . . High Security . | . . . Max Security . | . . . Peak Influence 333 | 15 333 184 Initial 94 | . 3 94 Average 120 | 2 127 131 Influence Increases 772 | 15 587 170 Destroy 0b10 Robot/C 420 | . 300 120 Destroy 0b10 Robot/NC 80 | 15 55 10 Destroy Leader 126 | . 96 30 Successful Hack 11 | . 11 . Select Force Hacks 60 | . 60 . Destroy Structure 75 | . 65 10 Influence Decreases 748 | 10 349 389 Entered New Map 151 | . 2 149 Time Decay 497 | 10 347 140 Lost Part 60 | . . 60 Lost Ally 40 | . . 40 Squads Dispatched 5 | . 5 . Investigation 3 | . 3 . Extermination . | . . . Reinforcement 2 | . 2 . Assault . | . . . Garrison . | . . . Intercept . | . . . Searches Triggered . | . . . Construction Impeded . | . . . Haulers Reinforced . | . . . Active Scanning Responses . | . . . Cargo Convoy Interrupts . | . . . Stealth | -11 -10 -10 --------- Run | Yrd Mat Min Distress Signals 2 | . 2 . Communications Jammed . | . . . Distress Signals . | . . . Times Spotted 40 | . 30 10 Peak Tracking Total 6 | . 6 4 Tactical Retreats 1 | . . 1 Traps | -11 -10 -10 ------- Run | Yrd Mat Min Traps Triggered 2 | . 2 . Indirectly . | . . . Trap Hack Attempts . | . . . Triggered . | . . . Disarmed . | . . . Reprogrammed . | . . . Reused . | . . . Traps Extracted . | . . . Installed . | . . . Triggered . | . . . Machines | -11 -10 -10 ---------- Run | Yrd Mat Min Machines Disabled . | . . . Max in Single Turn . | . . . Machines Repaired . | . . . Machines Dismantled . | . . . Machines Sabotaged . | . . . Overloaded Fab Kills . | . . . Hacking | -11 -10 -10 --------- Run | Yrd Mat Min Machines Accessed 8 | . 8 . Terminals 5 | . 5 . Fabricators . | . . . Repair Stations 1 | . 1 . Recycling Units 2 | . 2 . Scanalyzers . | . . . Garrison Access . | . . . Total Hacks 27 | . 27 . Successful 16 | . 16 . Failed 10 | . 10 . Catastrophic 1 | . 1 . Database Lockouts 1 | . 1 . Manual 20 | . 20 . Terminals 21 | . 21 . Fabricators . | . . . Repair Stations 3 | . 3 . Recycling Units 3 | . 3 . Scanalyzers . | . . . Garrison Access . | . . . Terminal Hacks 9 | . 9 . Part Schematic 1 | . 1 . Robot Analysis 4 | . 4 . Prototype ID Bank 2 | . 2 . Terminal Index 1 | . 1 . Locate Traps 1 | . 1 . Fabricator Hacks . | . . . Repair Station Hacks 2 | . 2 . Scan Component 1 | . 1 . Repair 1 | . 1 . Recycling Unit Hacks . | . . . Scanalyzer . | . . . Garrison Access Hacks . | . . . Unauthorized Hacks 5 | . 5 . Terminals 3 | . 3 . Botnet 3 | . 3 . Fabricators . | . . . Repair Stations . | . . . Recycling Units 2 | . 2 . Tunnel 2 | . 2 . Scanalyzers . | . . . Garrison Access . | . . . Data Cores Recovered . | . . . Used . | . . . Hacking Detections 5 | . 5 . Full Trace Events 2 | . 2 . Feedback Events . | . . . Feedback Blocked . | . . . Robot Schematics Acquired . | . . . Robots Built . | . . . Authchips . | . . . Time . | . . . Total Robot Build Rating . | . . . Part Schematics Acquired 1 | . 1 . Parts Built . | . . . Authchips . | . . . Time . | . . . Total Part Build Rating . | . . . Part Studies Acquired . | . . . Parts Repaired 1 | . 1 . Time 26 | . 26 . Parts Recycled . | . . . Recycled Matter . | . . . Retrieved Matter . | . . . Retrieved Components . | . . . Parts Scanalyzed . | . . . Part Schematics Acquired . | . . . Parts Damaged . | . . . Bothacking | -11 -10 -10 ------------ Run | Yrd Mat Min Used RIF Installer . | . . . Robots Hacked . | . . . Non-combat . | . . . Combat . | . . . Robot Hacks Applied . | . . . Relay Couplers Released . | . . . Fabnet Peak Effective % . | . . . Robots Rewired . | . . . Allies Hacked . | . . . Hacks Repelled . | . . . Allies | -11 -10 -10 -------- Run | Yrd Mat Min Total Allies 2 | . . 2 Largest Group 2 | . . 2 Highest-Rated Group 51 | . . 51 Highest-Rated Ally 31 | . . 31 Total Orders . | . . . Ally Attacks 12 | . . 12 Total Damage 126 | . . 126 Kills 2 | . . 2 Allies Corrupted . | . . . Allies Melted . | . . . Intel | -11 -10 -10 ------- Run | Yrd Mat Min Active Infowar (turns) . | . . . Robot Analysis Total 4 | . 4 . Derelict Logs Recovered 1 | . . 1 Drone Launches . | . . . Drone Recoveries . | . . . Exploration | -11 -10 -10 ------------- Run | Yrd Mat Min Turns Passed 1648 | 98 1266 284 Spaces Moved 1184 | 71 925 188 Core 2 | 2 . . Treads . | . . . Legs . | . . . Wheels 1182 | 69 925 188 Hover . | . . . Flight . | . . . Fastest Speed 50 | 50 90 105 Average Speed 99 | 98 97 113 Slowest Speed 120 | 100 120 120 Overloaded Moves . | . . . Propulsion Burnouts . | . . . Robots Hopped . | . . . Potential Cave-ins . | . . . Cave-ins Triggered . | . . . Exploration Rate (%) 47 | 4 96 43 Regions Visited 2 Branch Regions 1 Pre-discovered Areas 3 | . 2 1 Known Exits Taken 1 | . 1 . Unknown Exits Taken 1 | 1 . . Scrap Searched 1 | . . 1 Spaces Dug 14 | . 14 . Terrain Destroyed 78 | . 68 10 Melee . | . . . Projectile . | . . . AOE 78 | . 68 10 Terrain Rammed . | . . . Walls Destroyed . | . . . Machines Disabled . | . . . Actions | -11 -10 -10 --------- Run | Yrd Mat Min Total 1443 | 88 1125 230 Wait 55 | . 38 17 Move 1182 | 70 924 188 Hop . | . . . Pick Up 34 | 7 27 . Fast Attach 8 | 5 2 1 Attach 8 | 1 4 3 Detach 1 | . 1 . Swap 23 | 1 19 3 Drop 21 | . 19 2 Fire 111 | 4 91 16 Melee . | . . . Ram . | . . . Kick . | . . . Crush . | . . . Escape Stasis . | . . . Rewire . | . . . Trap . | . . . Miscellaneous . | . . . Route ------- -11/Scrapyard -10/Materials (discovered 5 exits: [*Mat x3] / *Min x2) -10/Mines History --------- Turn | Location | Event 18 | -11/Scrapyard | Discovered new exit (range 16) 99 | -11/Scrapyard | Entered Materials 301 | -10/Materials | Build established: Mutant 310 | -10/Materials | Discovered new exit (range 6) 484 | -10/Materials | Identified exit to Mines 561 | -10/Materials | Discovered exit to Mines (range 12) 610 | -10/Materials | Central database locked down 722 | -10/Materials | Discovered new exit (range 15) 769 | -10/Materials | Repaired Wheel 858 | -10/Materials | Discovered new exit (range 6) 982 | -10/Materials | Discovered new exit (range 7) 1365 | -10/Materials | Entered Mines 1427 | -10/Mines | Core integrity fell below 50% 1478 | -10/Mines | Joined a pair of Derelicts in attacking an 0b10 outpost 1569 | -10/Mines | Assembled infested the area 1574 | -10/Mines | Assisted by a Guerilla fighting off Assembled 1574 | -10/Mines | Learned location of Storage (-9) 1646 | -10/Mines | Core integrity fell below 20% 1649 | -10/Mines | Destroyed by D-53 Grenadier with Mini Grenade Launcher Last Messages --------------- 01600_ as-67115 destroyed. 01605_ as-02733 suffers critical hit (Burn). 01607_ as-02733 destroyed. 01617_ T-07 Excavator destroyed. 01620_ Acquired 15 matter. 01636_ K-01 Serf destroyed. 01637_ Lgt. Armor Plating destroyed. 01638_ Destroyed Shock Absorption System. 01639_ The unstable cave ceiling collapses. 01641_ 13-4VH(g) destroyed. 01641_ Ion Engine destroyed. 01641_ D-53 Grenadier suffers critical hit (Burn). 01643_ The unstable cave ceiling collapses. 01643_ Assault Rifle destroyed. 01644_ The unstable cave ceiling collapses. 01645_ Lgt. Armor Plating destroyed. 01645_ D-53 Grenadier destroyed. 01647_ The unstable cave ceiling collapses. 01647_ Beamcaster destroyed. 01649_ The unstable cave ceiling collapses. Map ----- +----------------------------------------------------+ | ??????????????????????????????????????????# | | ??????????????????????????????????????????# ###### | | ??????????????????????????????????????????# #????? | | ??????????????????????????????????????????# #????? | | ??????????????????????????????????????????# #????? | | ??????????????????????????????????????????# #????? | | ?????????????????????###??????????????????# ###### | | ???????????????????### #?????????????????# | | ??????????????????## ?????????????????##### ## | | ??????????????????? ?????????????????????# #? | | ???????????????????? #????????????????????# #? | | ?????????????????????# ??????###????######## ## | | ??????????????????????# ?????? #????# ## | | ??????????????????????# ##????# #????# ######## | | ?????????????????????## ##???# #????#=#?????## | | ????????????### ###### ##??# #????# #?##### | | ??????????? #### #??### ### | | ??????????????# ## #### | | ??????????????????## | | ?????????????????## | | ?????????????????# d!% ######## #### ## | | ?????????????????# = / #???????####??## ### | | ??# ?????????????# ##?????????????####?? | | ?? ???????????# ##?????????????????? | | ? ?????????# # #?????????????????? | | ? ???????## @ #???????????????### | | = ??????### #??????????????## | | ####### ##??????????????# | | ??????# %% ##???????????????# | | ???????# ####### ##????????????????## | | ???????## #??????########??????????????????## | | ????????######??????????????????????????????????# | | ????????????????????????????????????????????????# | | ????????????????????????????????????????????????## | | ????????????????????????#######??????????????????? | | ????????????????????????# #??????????????????? | | ????????????????????????# #??????????????????? | | ????????????????????????# #####?????????????## | | ????????????????????????# #????????????## | | ????????????????????????#! ### #???????????## | | ????????????????????????# = #?# #???????????# | | ????????????????????????#= #?# ######??????# | | ????????????????????????#######?# #?????## | | ????????????????????????????????###### ####### | | ?????????????????????????????????????# | | ?????????????????????????????????????######### ## | | ?????????????????????????????????????????????# #? | | ?????????????????????????????????????????????# #? | | ?????????????????????????????????????????????# #? | | ?????????????????????????????????????????????# #? | +----------------------------------------------------+ Best States ------------- Heat Dissipation 25 Energy Generation 10 Energy Capacity 250 Matter Stores 300 Matter Capacity 300 Sight Range 16 Terrain Scan Density 10 Armor Coverage 150 Evasion (%) 42 Offensive Hacking 10 Item Schematics ----------------- Huge Storage Unit | -10/Materials | Hacked Robot Schematics ------------------ None Fabricated ------------ Nothing Repaired ---------- Wheel | 30% | -10/Materials Studied --------- None Alien Tech Used ----------------- None Achievements -------------- None Challenges ------------ None Game ------ Seed ImprinterDefenseRay Manual? 0 Play Time 00:14:20 Cumulative 334.9 hours Start 2025.11.25 @ 17:04:29 End 2025.11.25 @ 17:20:07 Sessions 1 Manual Loads 0 Difficulty Rogue Special Mode None Game No. 352 Rogue 348 Adventurer 3 Explorer 1 Win Type - Total 2 Types 2/0/0/0/0/0/0/0/0/0 Lore% 82 Gallery% 78 Achievement% 63 Wizard Run 0 Options --------- Layout 0 ASCII 0 Keyboard 0 Movement Mouse Keybinds 0 Fullscreen 2 Font 18/SmallcapsGlow Map View 76x50 Zoom Use 0% Tactical HUD 1 Map Filters NONE Filters NONE Steam 1 RUN: 98dc93a6-76c4-4689-adeb-8bbbae08f2dc